[Event "November 21 Late 2023"]
[Site "https://www.chess.com"]
[Date "2023.11.21"]
[Round "5"]
[White "Leschinsky, Gary"]
[Black "Tifferet, Shaked"]
[Result "1-0"]
[Board "86"]
[TimeControl "180+1"]
[WhiteFideId "30951321"]
[BlackFideId "2811529"]
[WhiteElo "2020"]
[BlackElo "2142"]
[WhiteTeam "USA"]
[BlackTeam "ISR"]
[WhiteClock "0:00:36"]
[BlackClock "0:00:02"]

1. d4 {[%clk 0:03:00]}  Nf6 {[%clk 0:02:58]} 2. c4 {[%clk 0:02:59]}  e6 {[%clk 0:02:58]} 3. Nc3 {[%clk 0:02:58]}  Bb4 {[%clk 0:02:57]} 4. e3 {[%clk 0:02:56]}  O-O {[%clk 0:02:56]} 5. Bd2 {[%clk 0:02:56]}  d5 {[%clk 0:02:54]} 6. Nf3 {[%clk 0:02:51]}  Nbd7 {[%clk 0:02:49]} 7. cxd5 {[%clk 0:02:47]}  exd5 {[%clk 0:02:43]} 8. Bd3 {[%clk 0:02:40]}  Re8 {[%clk 0:02:44]} 9. O-O {[%clk 0:02:39]}  c6 {[%clk 0:02:38]} 10. Qc2 {[%clk 0:02:30]}  h6 {[%clk 0:02:32]} 11. Rfe1 {[%clk 0:02:29]}  Nb6 {[%clk 0:02:20]} 12. a3 {[%clk 0:02:23]}  Bxc3 {[%clk 0:02:18]} 13. Bxc3 {[%clk 0:02:22]}  Ne4 {[%clk 0:02:18]} 14. h3 {[%clk 0:02:11]}  Bf5 {[%clk 0:02:07]} 15. Nd2 {[%clk 0:02:10]}  Qh4 {[%clk 0:02:04]} 16. f3 {[%clk 0:02:08]}  Qf2+ {[%clk 0:01:53]} 17. Kh2 {[%clk 0:02:00]}  Qg3+ {[%clk 0:01:50]} 18. Kg1 {[%clk 0:01:57]}  Bxh3 {[%clk 0:01:48]} 19. Nf1 {[%clk 0:01:56]}  Qg5 {[%clk 0:01:42]} 20. fxe4 {[%clk 0:01:54]}  dxe4 {[%clk 0:01:40]} 21. Bxe4 {[%clk 0:01:50]}  Nd5 {[%clk 0:01:34]} 22. Bf3 {[%clk 0:01:44]}  Nxe3 {[%clk 0:01:27]} 23. Nxe3 {[%clk 0:01:40]}  Rxe3 {[%clk 0:01:27]} 24. Rxe3 {[%clk 0:01:40]}  Qxe3+ {[%clk 0:01:26]} 25. Qf2 {[%clk 0:01:41]}  Qxf2+ {[%clk 0:01:25]} 26. Kxf2 {[%clk 0:01:42]}  Be6 {[%clk 0:01:26]} 27. Re1 {[%clk 0:01:39]}  Rd8 {[%clk 0:01:24]} 28. b4 {[%clk 0:01:36]}  a6 {[%clk 0:01:22]} 29. a4 {[%clk 0:01:36]}  Kf8 {[%clk 0:01:05]} 30. Rb1 {[%clk 0:01:34]}  Bc4 {[%clk 0:01:01]} 31. Be2 {[%clk 0:01:31]}  Bxe2 {[%clk 0:00:43]} 32. Kxe2 {[%clk 0:01:32]}  Rd5 {[%clk 0:00:43]} 33. Kd3 {[%clk 0:01:32]}  f5 {[%clk 0:00:40]} 34. Kc4 {[%clk 0:01:32]}  b5+ {[%clk 0:00:35]} 35. axb5 {[%clk 0:01:31]}  axb5+ {[%clk 0:00:35]} 36. Kd3 {[%clk 0:01:31]}  Kf7 {[%clk 0:00:35]} 37. Re1 {[%clk 0:01:29]}  g6 {[%clk 0:00:27]} 38. Re5 {[%clk 0:01:27]}  Rd7 {[%clk 0:00:27]} 39. Rc5 {[%clk 0:01:14]}  Rd6 {[%clk 0:00:25]} 40. d5 {[%clk 0:01:14]}  Rxd5+ {[%clk 0:00:23]} 41. Rxd5 {[%clk 0:01:14]}  cxd5 {[%clk 0:00:24]} 42. Kd4 {[%clk 0:01:15]}  f4 {[%clk 0:00:17]} 43. Kxd5 {[%clk 0:01:10]}  g5 {[%clk 0:00:17]} 44. Kc5 {[%clk 0:01:10]}  g4 {[%clk 0:00:15]} 45. Kxb5 {[%clk 0:01:08]}  g3 {[%clk 0:00:15]} 46. Kc4 {[%clk 0:00:56]}  h5 {[%clk 0:00:11]} 47. Be5 {[%clk 0:00:47]}  f3 {[%clk 0:00:09]} 48. Bxg3 {[%clk 0:00:44]}  fxg2 {[%clk 0:00:09]} 49. Bf2 {[%clk 0:00:41]}  h4 {[%clk 0:00:06]} 50. Bg1 {[%clk 0:00:40]}  Ke6 {[%clk 0:00:05]} 51. Kc5 {[%clk 0:00:39]}  Kf5 {[%clk 0:00:04]} 52. b5 {[%clk 0:00:38]}  Kg4 {[%clk 0:00:04]} 53. b6 {[%clk 0:00:39]}  h3 {[%clk 0:00:05]} 54. b7 {[%clk 0:00:36]}  h2 {[%clk 0:00:06]} 55. Bxh2 {[%clk 0:00:36]}  g1=Q+ {[%clk 0:00:02]} 56. Bxg1 {[%clk 0:00:36]} 1-0

[Event "November 21 Late 2023"]
[Site "https://www.chess.com"]
[Date "2023.11.21"]
[Round "5"]
[White "Baches Garcia, Guillermo"]
[Black "Romero Ruscalleda, Josep"]
[Result "1-0"]
[Board "88"]
[TimeControl "180+1"]
[WhiteFideId "2209764"]
[BlackFideId "2231859"]
[WhiteElo "2528"]
[BlackElo "2183"]
[WhiteTeam "ESP"]
[BlackTeam "ESP"]
[WhiteClock "0:01:10"]
[BlackClock "0:01:01"]

1. d4 {[%clk 0:03:00]}  g6 {[%clk 0:03:00]} 2. Nf3 {[%clk 0:03:01]}  Bg7 {[%clk 0:03:00]} 3. Bg5 {[%clk 0:03:02]}  d6 {[%clk 0:03:00]} 4. Nbd2 {[%clk 0:03:02]}  Nd7 {[%clk 0:03:01]} 5. e3 {[%clk 0:03:01]}  c5 {[%clk 0:03:01]} 6. c3 {[%clk 0:03:01]}  b6 {[%clk 0:02:59]} 7. Be2 {[%clk 0:03:00]}  Bb7 {[%clk 0:02:59]} 8. O-O {[%clk 0:02:59]}  Ngf6 {[%clk 0:02:59]} 9. h3 {[%clk 0:02:56]}  O-O {[%clk 0:02:57]} 10. a4 {[%clk 0:02:56]}  Ne4 {[%clk 0:02:55]} 11. Nxe4 {[%clk 0:02:56]}  Bxe4 {[%clk 0:02:55]} 12. b4 {[%clk 0:02:55]}  Rc8 {[%clk 0:02:44]} 13. Qb3 {[%clk 0:02:47]}  Nf6 {[%clk 0:02:33]} 14. Rfc1 {[%clk 0:02:37]}  Qd7 {[%clk 0:02:26]} 15. Nd2 {[%clk 0:02:32]}  Bb7 {[%clk 0:02:21]} 16. a5 {[%clk 0:02:29]}  Ne4 {[%clk 0:02:09]} 17. Nxe4 {[%clk 0:02:24]}  Bxe4 {[%clk 0:02:09]} 18. Bf1 {[%clk 0:02:04]}  h6 {[%clk 0:01:46]} 19. Bh4 {[%clk 0:02:01]}  cxb4 {[%clk 0:01:39]} 20. cxb4 {[%clk 0:01:57]}  g5 {[%clk 0:01:37]} 21. Bg3 {[%clk 0:01:56]}  Rxc1 {[%clk 0:01:36]} 22. Rxc1 {[%clk 0:01:55]}  Rc8 {[%clk 0:01:36]} 23. Rxc8+ {[%clk 0:01:45]}  Qxc8 {[%clk 0:01:36]} 24. Bc4 {[%clk 0:01:43]}  Bg6 {[%clk 0:01:09]} 25. Kh2 {[%clk 0:01:30]}  Kf8 {[%clk 0:01:09]} 26. axb6 {[%clk 0:01:26]}  axb6 {[%clk 0:01:09]} 27. b5 {[%clk 0:01:26]}  Qc7 {[%clk 0:01:05]} 28. Qa4 {[%clk 0:01:14]}  h5 {[%clk 0:01:01]} 29. Qa8+ {[%clk 0:01:10]} 1-0

[Event "November 21 Late 2023"]
[Site "https://www.chess.com"]
[Date "2023.11.21"]
[Round "5"]
[White "Eggleston, Thomas A"]
[Black "Tologon tegin, Semetei"]
[Result "0-1"]
[Board "89"]
[TimeControl "180+1"]
[WhiteFideId "412139"]
[BlackFideId "13800574"]
[WhiteElo "2169"]
[BlackElo "2258"]
[WhiteTeam "ENG"]
[BlackTeam "KGZ"]
[WhiteClock "0:00:48"]
[BlackClock "0:01:29"]

1. e4 {[%clk 0:03:00]}  e5 {[%clk 0:02:55]} 2. Nf3 {[%clk 0:02:59]}  Nc6 {[%clk 0:02:55]} 3. d4 {[%clk 0:02:58]}  exd4 {[%clk 0:02:55]} 4. Nxd4 {[%clk 0:02:59]}  Bc5 {[%clk 0:02:55]} 5. Nxc6 {[%clk 0:02:58]}  Qf6 {[%clk 0:02:54]} 6. Qd2 {[%clk 0:02:59]}  dxc6 {[%clk 0:02:52]} 7. Nc3 {[%clk 0:02:58]}  Ne7 {[%clk 0:02:52]} 8. Na4 {[%clk 0:02:46]}  Bd6 {[%clk 0:02:49]} 9. f4 {[%clk 0:02:40]}  Ng6 {[%clk 0:02:44]} 10. g3 {[%clk 0:02:26]}  O-O {[%clk 0:02:42]} 11. Bd3 {[%clk 0:02:22]}  Bh3 {[%clk 0:02:40]} 12. e5 {[%clk 0:02:11]}  Nxe5 {[%clk 0:02:25]} 13. fxe5 {[%clk 0:02:09]}  Qxe5+ {[%clk 0:02:26]} 14. Qe3 {[%clk 0:02:04]}  Qa5+ {[%clk 0:02:26]} 15. Nc3 {[%clk 0:01:59]}  Rae8 {[%clk 0:02:21]} 16. Be4 {[%clk 0:01:59]}  f5 {[%clk 0:02:21]} 17. Bd2 {[%clk 0:01:54]}  fxe4 {[%clk 0:02:08]} 18. O-O-O {[%clk 0:01:54]}  Rf3 {[%clk 0:02:04]} 19. Qg5 {[%clk 0:01:46]}  Qxg5 {[%clk 0:01:57]} 20. Bxg5 {[%clk 0:01:45]}  h6 {[%clk 0:01:52]} 21. Bf4 {[%clk 0:01:25]}  Bxf4+ {[%clk 0:01:47]} 22. gxf4 {[%clk 0:01:26]}  Rxf4 {[%clk 0:01:48]} 23. Rde1 {[%clk 0:01:25]}  e3 {[%clk 0:01:46]} 24. Rhg1 {[%clk 0:01:25]}  Rf2 {[%clk 0:01:38]} 25. Rg3 {[%clk 0:01:20]}  Bf5 {[%clk 0:01:38]} 26. Kb1 {[%clk 0:01:00]}  Bxc2+ {[%clk 0:01:30]} 27. Ka1 {[%clk 0:01:01]}  e2 {[%clk 0:01:30]} 28. Rgg1 {[%clk 0:00:48]}  Bd3 {[%clk 0:01:29]} 0-1

[Event "November 21 Late 2023"]
[Site "https://www.chess.com"]
[Date "2023.11.21"]
[Round "5"]
[White "Zampronha, Wladimir Camilo"]
[Black "Toniutti, Ezio"]
[Result "1-0"]
[Board "91"]
[TimeControl "180+1"]
[WhiteFideId "2103087"]
[BlackFideId "113034"]
[WhiteElo "2055"]
[BlackElo "2215"]
[WhiteTeam "BRA"]
[BlackTeam "ARG"]
[WhiteClock "0:00:01"]
[BlackClock "0:00:00"]

1. e4 {[%clk 0:02:55]}  e5 {[%clk 0:02:58]} 2. Nf3 {[%clk 0:02:55]}  Nc6 {[%clk 0:02:59]} 3. d4 {[%clk 0:02:56]}  exd4 {[%clk 0:02:59]} 4. Nxd4 {[%clk 0:02:57]}  Bc5 {[%clk 0:02:58]} 5. Be3 {[%clk 0:02:56]}  Qf6 {[%clk 0:02:58]} 6. c3 {[%clk 0:02:57]}  Nge7 {[%clk 0:02:57]} 7. Bc4 {[%clk 0:02:56]}  O-O {[%clk 0:02:56]} 8. O-O {[%clk 0:02:55]}  b6 {[%clk 0:02:54]} 9. Nxc6 {[%clk 0:02:51]}  Qxc6 {[%clk 0:02:53]} 10. Bxc5 {[%clk 0:02:50]}  Qxc5 {[%clk 0:02:51]} 11. Qd4 {[%clk 0:02:47]}  Bb7 {[%clk 0:02:26]} 12. Qxc5 {[%clk 0:02:46]}  bxc5 {[%clk 0:02:27]} 13. f3 {[%clk 0:02:45]}  d6 {[%clk 0:02:20]} 14. Nd2 {[%clk 0:02:39]}  Rfe8 {[%clk 0:02:17]} 15. Rfe1 {[%clk 0:02:38]}  a5 {[%clk 0:02:14]} 16. Kf2 {[%clk 0:02:32]}  Rab8 {[%clk 0:02:07]} 17. Bb5 {[%clk 0:02:20]}  Bc6 {[%clk 0:02:03]} 18. Bxc6 {[%clk 0:02:14]}  Nxc6 {[%clk 0:02:04]} 19. b3 {[%clk 0:02:10]}  Ne5 {[%clk 0:02:03]} 20. Red1 {[%clk 0:02:01]}  a4 {[%clk 0:01:58]} 21. Rab1 {[%clk 0:02:01]}  g5 {[%clk 0:01:54]} 22. Nc4 {[%clk 0:01:58]}  axb3 {[%clk 0:01:51]} 23. Nxe5 {[%clk 0:01:52]}  bxa2 {[%clk 0:01:42]} 24. Ra1 {[%clk 0:00:38]}  Rb2+ {[%clk 0:01:36]} 25. Ke1 {[%clk 0:00:39]}  Rxe5 {[%clk 0:01:35]} 26. Rd2 {[%clk 0:00:39]}  Rb1+ {[%clk 0:01:14]} 27. Rd1 {[%clk 0:00:39]}  f5 {[%clk 0:01:03]} 28. Rxa2 {[%clk 0:00:30]}  Rxd1+ {[%clk 0:00:59]} 29. Kxd1 {[%clk 0:00:31]}  fxe4 {[%clk 0:00:59]} 30. Ra7 {[%clk 0:00:24]}  exf3 {[%clk 0:00:56]} 31. gxf3 {[%clk 0:00:25]}  Re3 {[%clk 0:00:53]} 32. Rxc7 {[%clk 0:00:17]}  Rxc3 {[%clk 0:00:54]} 33. Rd7 {[%clk 0:00:17]}  Rd3+ {[%clk 0:00:47]} 34. Ke2 {[%clk 0:00:16]}  c4 {[%clk 0:00:46]} 35. h3 {[%clk 0:00:12]}  d5 {[%clk 0:00:45]} 36. Kf2 {[%clk 0:00:11]}  h6 {[%clk 0:00:45]} 37. Kg3 {[%clk 0:00:11]}  c3 {[%clk 0:00:43]} 38. Rc7 {[%clk 0:00:10]}  d4 {[%clk 0:00:43]} 39. Kg4 {[%clk 0:00:10]}  Re3 {[%clk 0:00:35]} 40. Rc4 {[%clk 0:00:09]}  d3 {[%clk 0:00:24]} 41. Rxc3 {[%clk 0:00:09]}  d2 {[%clk 0:00:23]} 42. Rc8+ {[%clk 0:00:07]}  Kg7 {[%clk 0:00:23]} 43. Rd8 {[%clk 0:00:08]}  Re2 {[%clk 0:00:23]} 44. f4 {[%clk 0:00:01]}  gxf4 {[%clk 0:00:15]} 45. Kf3 {[%clk 0:00:02]}  Rh2 {[%clk 0:00:14]} 46. Kxf4 {[%clk 0:00:02]}  Kg6 {[%clk 0:00:13]} 47. Kg3 {[%clk 0:00:02]}  Re2 {[%clk 0:00:12]} 48. Rd5 {[%clk 0:00:02]}  Kf6 {[%clk 0:00:09]} 49. Kf3 {[%clk 0:00:02]}  Rh2 {[%clk 0:00:09]} 50. Kg3 {[%clk 0:00:02]}  Ke6 {[%clk 0:00:05]} 51. Rd8 {[%clk 0:00:02]}  Ke7 {[%clk 0:00:00]} 52. Rd3 {[%clk 0:00:01]} 1-0

[Event "November 21 Late 2023"]
[Site "https://www.chess.com"]
[Date "2023.11.21"]
[Round "5"]
[White "Cooper, Aaron"]
[Black "Cristi_Coca"]
[Result "0-1"]
[Board "92"]
[TimeControl "180+1"]
[WhiteFideId "2634945"]
[WhiteElo "2342"]
[BlackElo "2510"]
[WhiteTeam "CAN"]
[WhiteClock "0:00:35"]
[BlackClock "0:01:58"]

1. e4 {[%clk 0:03:00]}  c5 {[%clk 0:02:57]} 2. Nf3 {[%clk 0:02:59]}  e6 {[%clk 0:02:55]} 3. d4 {[%clk 0:02:59]}  cxd4 {[%clk 0:02:56]} 4. Nxd4 {[%clk 0:02:59]}  a6 {[%clk 0:02:56]} 5. Nc3 {[%clk 0:02:59]}  b5 {[%clk 0:02:53]} 6. Bd3 {[%clk 0:02:34]}  Bb7 {[%clk 0:02:52]} 7. O-O {[%clk 0:02:32]}  Qc7 {[%clk 0:02:52]} 8. f4 {[%clk 0:02:15]}  Nc6 {[%clk 0:02:47]} 9. Nxc6 {[%clk 0:02:01]}  Qxc6 {[%clk 0:02:48]} 10. Be3 {[%clk 0:01:54]}  Nf6 {[%clk 0:02:41]} 11. Qe2 {[%clk 0:01:50]}  b4 {[%clk 0:02:39]} 12. Nd5 {[%clk 0:01:22]}  Nxd5 {[%clk 0:02:32]} 13. exd5 {[%clk 0:01:22]}  Qxd5 {[%clk 0:02:32]} 14. Bc4 {[%clk 0:01:11]}  Qc6 {[%clk 0:02:30]} 15. Rad1 {[%clk 0:01:07]}  Bc5 {[%clk 0:02:27]} 16. Bxc5 {[%clk 0:01:01]}  Qxc5+ {[%clk 0:02:28]} 17. Kh1 {[%clk 0:01:01]}  O-O {[%clk 0:02:27]} 18. Bd3 {[%clk 0:00:57]}  f5 {[%clk 0:02:24]} 19. Rc1 {[%clk 0:00:45]}  Qd5 {[%clk 0:02:12]} 20. Bc4 {[%clk 0:00:41]}  Qc6 {[%clk 0:02:09]} 21. c3 {[%clk 0:00:38]}  bxc3 {[%clk 0:02:07]} 22. Rxc3 {[%clk 0:00:37]}  Qe4 {[%clk 0:02:00]} 23. Qd1 {[%clk 0:00:35]}  Qxg2# {[%clk 0:01:58]} 0-1

[Event "November 21 Late 2023"]
[Site "https://www.chess.com"]
[Date "2023.11.21"]
[Round "5"]
[White "Musovic, Armin"]
[Black "OKEKE, Isaac Chukwudalu"]
[Result "1-0"]
[Board "95"]
[TimeControl "180+1"]
[WhiteFideId "939935"]
[BlackFideId "8508526"]
[WhiteElo "2322"]
[BlackElo "2161"]
[WhiteTeam "MNE"]
[BlackTeam "NGR"]
[WhiteClock "0:00:40"]
[BlackClock "0:00:00"]

1. a3 {[%clk 0:02:55]}  d5 {[%clk 0:02:59]} 2. Nc3 {[%clk 0:02:55]}  e6 {[%clk 0:02:57]} 3. e4 {[%clk 0:02:55]}  d4 {[%clk 0:02:55]} 4. Nce2 {[%clk 0:02:55]}  c5 {[%clk 0:02:54]} 5. Ng3 {[%clk 0:02:56]}  Nc6 {[%clk 0:02:54]} 6. Bb5 {[%clk 0:02:56]}  Bd6 {[%clk 0:02:53]} 7. Bxc6+ {[%clk 0:02:57]}  bxc6 {[%clk 0:02:54]} 8. d3 {[%clk 0:02:57]}  Qc7 {[%clk 0:02:53]} 9. Qg4 {[%clk 0:02:55]}  Ne7 {[%clk 0:02:54]} 10. Qxg7 {[%clk 0:02:54]}  Be5 {[%clk 0:02:54]} 11. Bf4 {[%clk 0:02:47]}  Bxg7 {[%clk 0:02:44]} 12. Bxc7 {[%clk 0:02:47]}  Kd7 {[%clk 0:02:37]} 13. Ba5 {[%clk 0:02:44]}  Ng6 {[%clk 0:02:34]} 14. Nh3 {[%clk 0:02:37]}  Kd6 {[%clk 0:02:24]} 15. f4 {[%clk 0:02:31]}  f5 {[%clk 0:02:14]} 16. O-O {[%clk 0:02:24]}  Rf8 {[%clk 0:02:11]} 17. Rae1 {[%clk 0:02:22]}  Ba6 {[%clk 0:02:08]} 18. exf5 {[%clk 0:02:12]}  exf5 {[%clk 0:02:08]} 19. Ng5 {[%clk 0:02:13]}  Bh6 {[%clk 0:01:48]} 20. Nxh7 {[%clk 0:02:03]}  Rf7 {[%clk 0:01:46]} 21. Ng5 {[%clk 0:02:01]}  Bxg5 {[%clk 0:01:41]} 22. fxg5 {[%clk 0:02:02]}  Raf8 {[%clk 0:01:36]} 23. Nh5 {[%clk 0:01:52]}  c4 {[%clk 0:01:33]} 24. dxc4 {[%clk 0:01:37]}  Bxc4 {[%clk 0:01:33]} 25. Rf2 {[%clk 0:01:38]}  Bd5 {[%clk 0:01:25]} 26. Nf6 {[%clk 0:01:33]}  f4 {[%clk 0:01:18]} 27. c3 {[%clk 0:01:24]}  dxc3 {[%clk 0:01:12]} 28. Bxc3 {[%clk 0:01:24]}  Rd8 {[%clk 0:00:34]} 29. Rd1 {[%clk 0:01:19]}  Ke6 {[%clk 0:00:33]} 30. Rfd2 {[%clk 0:01:06]}  Nh4 {[%clk 0:00:15]} 31. Re1+ {[%clk 0:00:59]}  Kf5 {[%clk 0:00:15]} 32. Re5+ {[%clk 0:00:59]}  Kg6 {[%clk 0:00:09]} 33. Nxd5 {[%clk 0:00:59]}  cxd5 {[%clk 0:00:10]} 34. Rexd5 {[%clk 0:00:59]}  Rxd5 {[%clk 0:00:07]} 35. Rxd5 {[%clk 0:01:00]}  Re7 {[%clk 0:00:07]} 36. Rd6+ {[%clk 0:00:58]}  Kf5 {[%clk 0:00:07]} 37. Kf2 {[%clk 0:00:56]}  Re4 {[%clk 0:00:04]} 38. Ra6 {[%clk 0:00:45]}  f3 {[%clk 0:00:01]} 39. gxf3 {[%clk 0:00:39]}  Rf4 {[%clk 0:00:00]} 40. Rf6+ {[%clk 0:00:40]} 1-0

[Event "November 21 Late 2023"]
[Site "https://www.chess.com"]
[Date "2023.11.21"]
[Round "5"]
[White "Rodriguez Dominguez, Melissa"]
[Black "Serban, Cristian-Stefan"]
[Result "1-0"]
[Board "97"]
[TimeControl "180+1"]
[WhiteFideId "3517560"]
[BlackFideId "1241443"]
[WhiteElo "2012"]
[BlackElo "2028"]
[WhiteTeam "CUB"]
[BlackTeam "ROU"]
[WhiteClock "0:00:09"]
[BlackClock "0:00:02"]

1. e4 {[%clk 0:03:00]}  g6 {[%clk 0:02:54]} 2. d4 {[%clk 0:02:59]}  Bg7 {[%clk 0:02:54]} 3. Be3 {[%clk 0:02:54]}  d6 {[%clk 0:02:49]} 4. Qd2 {[%clk 0:02:53]}  a6 {[%clk 0:02:49]} 5. Nf3 {[%clk 0:02:51]}  b5 {[%clk 0:02:49]} 6. a4 {[%clk 0:02:50]}  bxa4 {[%clk 0:02:45]} 7. Rxa4 {[%clk 0:02:48]}  Bb7 {[%clk 0:02:45]} 8. Nc3 {[%clk 0:02:46]}  Nd7 {[%clk 0:02:44]} 9. Bd3 {[%clk 0:02:42]}  Ngf6 {[%clk 0:02:31]} 10. e5 {[%clk 0:02:35]}  dxe5 {[%clk 0:02:31]} 11. dxe5 {[%clk 0:02:36]}  Ng4 {[%clk 0:02:32]} 12. Rxg4 {[%clk 0:02:34]}  Bxf3 {[%clk 0:02:30]} 13. gxf3 {[%clk 0:02:33]}  Nxe5 {[%clk 0:02:31]} 14. Rg3 {[%clk 0:02:27]}  h5 {[%clk 0:02:17]} 15. h4 {[%clk 0:02:27]}  Rb8 {[%clk 0:01:59]} 16. Bxa6 {[%clk 0:02:13]}  Rxb2 {[%clk 0:01:56]} 17. Qxd8+ {[%clk 0:01:58]}  Kxd8 {[%clk 0:01:57]} 18. Kd2 {[%clk 0:01:57]}  c6 {[%clk 0:01:45]} 19. Rd1 {[%clk 0:01:55]}  Kc7 {[%clk 0:01:40]} 20. Kc1 {[%clk 0:01:54]}  Rbb8 {[%clk 0:01:37]} 21. Ne4 {[%clk 0:01:31]}  Ra8 {[%clk 0:01:27]} 22. Nc5 {[%clk 0:01:14]}  Rhd8 {[%clk 0:01:11]} 23. Rxd8 {[%clk 0:01:13]}  Kxd8 {[%clk 0:01:12]} 24. Be2 {[%clk 0:00:57]}  Ra1+ {[%clk 0:01:09]} 25. Kd2 {[%clk 0:00:58]}  Rh1 {[%clk 0:01:08]} 26. f4 {[%clk 0:00:52]}  Nd7 {[%clk 0:01:08]} 27. Nxd7 {[%clk 0:00:51]}  Kxd7 {[%clk 0:01:09]} 28. f5 {[%clk 0:00:51]}  Rxh4 {[%clk 0:00:51]} 29. fxg6 {[%clk 0:00:50]}  fxg6 {[%clk 0:00:48]} 30. Rxg6 {[%clk 0:00:50]}  Be5 {[%clk 0:00:48]} 31. Rh6 {[%clk 0:00:48]}  Bd6 {[%clk 0:00:47]} 32. Bxh5 {[%clk 0:00:44]}  Ra4 {[%clk 0:00:47]} 33. f3 {[%clk 0:00:37]}  Bb4+ {[%clk 0:00:47]} 34. c3 {[%clk 0:00:36]}  Ra2+ {[%clk 0:00:46]} 35. Kd3 {[%clk 0:00:36]}  Bd6 {[%clk 0:00:45]} 36. Bf7 {[%clk 0:00:34]}  Ra1 {[%clk 0:00:43]} 37. Be6+ {[%clk 0:00:29]}  Kc7 {[%clk 0:00:43]} 38. Rh8 {[%clk 0:00:28]}  Rf1 {[%clk 0:00:42]} 39. Rf8 {[%clk 0:00:24]}  Rd1+ {[%clk 0:00:39]} 40. Ke2 {[%clk 0:00:24]}  Ra1 {[%clk 0:00:40]} 41. f4 {[%clk 0:00:21]}  Ra3 {[%clk 0:00:40]} 42. Kd3 {[%clk 0:00:20]}  Bb4 {[%clk 0:00:38]} 43. Bd4 {[%clk 0:00:20]}  Bd6 {[%clk 0:00:37]} 44. f5 {[%clk 0:00:16]}  Ra1 {[%clk 0:00:36]} 45. Rf7 {[%clk 0:00:15]}  Kd8 {[%clk 0:00:35]} 46. Rf8+ {[%clk 0:00:15]}  Kc7 {[%clk 0:00:35]} 47. f6 {[%clk 0:00:14]}  exf6 {[%clk 0:00:35]} 48. Rxf6 {[%clk 0:00:14]}  Re1 {[%clk 0:00:31]} 49. Rf7+ {[%clk 0:00:14]}  Kb8 {[%clk 0:00:32]} 50. Bc4 {[%clk 0:00:13]}  Rh1 {[%clk 0:00:29]} 51. Bb6 {[%clk 0:00:13]}  Rh3+ {[%clk 0:00:28]} 52. Kc2 {[%clk 0:00:12]}  Be5 {[%clk 0:00:28]} 53. Ba6 {[%clk 0:00:09]}  Rxc3+ {[%clk 0:00:02]} 54. Kd2 {[%clk 0:00:09]} 1-0

[Event "November 21 Late 2023"]
[Site "https://www.chess.com"]
[Date "2023.11.21"]
[Round "5"]
[White "Silva Lucena, Cristian"]
[Black "seasidesunset"]
[Result "1-0"]
[Board "98"]
[TimeControl "180+1"]
[WhiteFideId "2232588"]
[WhiteElo "2248"]
[BlackElo "2197"]
[WhiteTeam "ESP"]
[WhiteClock "0:01:35"]
[BlackClock "0:00:05"]

1. e4 {[%clk 0:03:00]}  c5 {[%clk 0:02:58]} 2. Nf3 {[%clk 0:03:01]}  d6 {[%clk 0:02:58]} 3. d4 {[%clk 0:03:01]}  cxd4 {[%clk 0:02:59]} 4. Nxd4 {[%clk 0:03:02]}  Nf6 {[%clk 0:02:59]} 5. Nc3 {[%clk 0:03:03]}  a6 {[%clk 0:03:00]} 6. Bg5 {[%clk 0:03:02]}  e6 {[%clk 0:02:59]} 7. f4 {[%clk 0:03:03]}  h6 {[%clk 0:03:00]} 8. Bh4 {[%clk 0:03:02]}  Qb6 {[%clk 0:02:59]} 9. Bxf6 {[%clk 0:03:03]}  gxf6 {[%clk 0:02:59]} 10. Qd2 {[%clk 0:03:00]}  Nc6 {[%clk 0:02:58]} 11. Nb3 {[%clk 0:02:58]}  Bd7 {[%clk 0:02:50]} 12. Be2 {[%clk 0:02:58]}  h5 {[%clk 0:02:51]} 13. O-O-O {[%clk 0:02:56]}  O-O-O {[%clk 0:02:46]} 14. Kb1 {[%clk 0:02:57]}  Kb8 {[%clk 0:02:45]} 15. Rhf1 {[%clk 0:02:55]}  Bh6 {[%clk 0:02:37]} 16. g3 {[%clk 0:02:53]}  h4 {[%clk 0:02:34]} 17. a3 {[%clk 0:02:44]}  Bc8 {[%clk 0:02:25]} 18. Qe1 {[%clk 0:02:20]}  Na5 {[%clk 0:01:59]} 19. Nxa5 {[%clk 0:02:08]}  Qxa5 {[%clk 0:02:00]} 20. gxh4 {[%clk 0:02:08]}  Bg7 {[%clk 0:01:40]} 21. f5 {[%clk 0:01:56]}  d5 {[%clk 0:00:34]} 22. Qg3+ {[%clk 0:01:53]}  Qc7 {[%clk 0:00:23]} 23. Qxg7 {[%clk 0:01:52]}  d4 {[%clk 0:00:21]} 24. Na2 {[%clk 0:01:50]}  Qxh2 {[%clk 0:00:21]} 25. Bd3 {[%clk 0:01:48]}  Qxh4 {[%clk 0:00:13]} 26. Qxf7 {[%clk 0:01:45]}  e5 {[%clk 0:00:14]} 27. Rg1 {[%clk 0:01:37]}  Rd7 {[%clk 0:00:13]} 28. Qb3 {[%clk 0:01:34]}  Rc7 {[%clk 0:00:12]} 29. Nb4 {[%clk 0:01:34]}  Qh6 {[%clk 0:00:07]} 30. Nxa6+ {[%clk 0:01:34]}  Ka7 {[%clk 0:00:06]} 31. Nxc7 {[%clk 0:01:35]}  Qh7 {[%clk 0:00:05]} 32. Nb5+ {[%clk 0:01:35]}  Kb8 {[%clk 0:00:05]} 33. Nd6 {[%clk 0:01:36]}  Qc7 {[%clk 0:00:05]} 34. Nxc8 {[%clk 0:01:35]}  Rxc8 {[%clk 0:00:05]} 35. Rg6 {[%clk 0:01:36]}  Qe7 {[%clk 0:00:04]} 36. Rdg1 {[%clk 0:01:36]}  Rh8 {[%clk 0:00:02]} 37. Rg8+ {[%clk 0:01:35]}  Rxg8 {[%clk 0:00:03]} 38. Rxg8+ {[%clk 0:01:36]}  Ka7 {[%clk 0:00:03]} 39. Qa4+ {[%clk 0:01:36]}  Kb6 {[%clk 0:00:03]} 40. Qb4+ {[%clk 0:01:36]}  Ka7 {[%clk 0:00:04]} 41. Qxe7 {[%clk 0:01:36]}  Kb6 {[%clk 0:00:04]} 42. Qxb7+ {[%clk 0:01:36]}  Ka5 {[%clk 0:00:05]} 43. Qb5# {[%clk 0:01:35]} 1-0

[Event "November 21 Late 2023"]
[Site "https://www.chess.com"]
[Date "2023.11.21"]
[Round "5"]
[White "DraningWaterHi"]
[Black "Ventura Bolet, Maxim"]
[Result "0-1"]
[Board "99"]
[TimeControl "180+1"]
[BlackFideId "22238824"]
[WhiteElo "2141"]
[BlackElo "2227"]
[BlackTeam "ESP"]
[WhiteClock "0:01:58"]
[BlackClock "0:02:05"]

1. d4 {[%clk 0:02:59]}  Nf6 {[%clk 0:02:59]} 2. c4 {[%clk 0:02:58]}  d6 {[%clk 0:02:59]} 3. Nf3 {[%clk 0:02:55]}  g6 {[%clk 0:02:59]} 4. g3 {[%clk 0:02:54]}  Bg7 {[%clk 0:02:59]} 5. Bg2 {[%clk 0:02:54]}  O-O {[%clk 0:02:59]} 6. O-O {[%clk 0:02:53]}  Nbd7 {[%clk 0:02:59]} 7. Nc3 {[%clk 0:02:51]}  e5 {[%clk 0:02:59]} 8. e4 {[%clk 0:02:50]}  exd4 {[%clk 0:02:59]} 9. Nxd4 {[%clk 0:02:51]}  Nc5 {[%clk 0:03:00]} 10. Re1 {[%clk 0:02:49]}  Re8 {[%clk 0:03:00]} 11. Bf4 {[%clk 0:02:46]}  Bd7 {[%clk 0:02:57]} 12. Ndb5 {[%clk 0:02:44]}  a6 {[%clk 0:02:53]} 13. Nxc7 {[%clk 0:02:35]}  Qxc7 {[%clk 0:02:51]} 14. Bxd6 {[%clk 0:02:34]}  Qc8 {[%clk 0:02:41]} 15. e5 {[%clk 0:02:24]}  Ng4 {[%clk 0:02:37]} 16. Bxc5 {[%clk 0:02:22]}  Qxc5 {[%clk 0:02:35]} 17. Qxd7 {[%clk 0:02:21]}  Qxf2+ {[%clk 0:02:25]} 18. Kh1 {[%clk 0:02:21]}  Qxb2 {[%clk 0:02:22]} 19. Ne4 {[%clk 0:02:11]}  Nxe5 {[%clk 0:02:14]} 20. Rab1 {[%clk 0:01:58]}  Nxd7 {[%clk 0:02:05]} 0-1